bitfinex/quotes_BTCUSD_20220218
["timestamp","ask_amount","ask_price","bid_price","bid_amount"]
[1645199498091,0.105011,39856.0,39855.0,0.21916493]
[1645199498291,0.00125,39863.0,39854.0,0.25254505]
[1645199498492,0.001,39862.0,39860.0,0.0015368]
[1645199498692,0.00625707,39861.0,39860.0,0.0015368]
[1645199498892,1.17063907,39861.0,39851.0,0.3]
[1645199499093,0.00625738,39857.0,39851.0,1.077]
[1645199499293,0.00625738,39853.0,39851.0,1.03925384]
[1645199499491,0.11747193,39856.0,39836.0,0.15]
[1645199499492,0.07861298,39852.0,39836.0,0.15]
[1645199499698,0.06282,39839.0,39838.0,0.3]
[1645199499893,0.06282,39839.0,39838.0,0.26677586]
[1645199500093,0.06282,39839.0,39838.0,0.71677586]
[1645199500294,0.06282,39839.0,39838.0,0.26677586]
[1645199500549,0.125639,39840.0,39838.0,0.79187694]
[1645199500750,0.125639,39840.0,39838.0,0.49187694]
[1645199501551,0.001,39844.0,39840.0,1.15]
[1645199501752,0.05,39852.0,39843.0,0.3]
[1645199501951,0.0422,39857.0,39844.0,0.3]
[1645199502150,0.125586,39855.0,39851.0,0.25]
[1645199502354,0.125586,39855.0,39850.0,0.3]
[1645199502552,0.062792,39853.0,39852.0,0.21677847]
[1645199502751,0.062792,39853.0,39852.0,0.21596205]
[1645199502950,0.062792,39853.0,39845.0,0.1]
[1645199503152,0.104992,39853.0,39845.0,0.09993391]
[1645199503352,0.125619,39845.0,39844.0,0.3]
[1645199503552,0.125619,39845.0,39844.0,0.24926177]
[1645199503753,0.05,39853.0,39845.0,1.15]
[1645199503954,0.188398,39858.0,39846.0,0.3]
[1645199504199,0.188398,39858.0,39854.0,0.34932786]
[1645199504797,0.06279,39856.0,39855.0,0.24570008]
[1645199505001,0.06279,39856.0,39855.0,0.64601523]
[1645199505198,0.06279,39856.0,39855.0,0.94601523]
[1645199505398,0.06279,39856.0,39855.0,0.54608132]
[1645199505998,0.06279,39856.0,39855.0,0.24570008]
[1645199506498,0.06379,39856.0,39855.0,0.24570008]
[1645199506698,0.062798,39851.0,39848.0,0.09993391]
[1645199506902,0.03671448,39861.0,39848.0,0.09993391]
[1645199506903,0.85772726,39892.0,39890.0,83.20771152]
[1645199507098,6.35220651,39891.0,39890.0,81.79726487]
[1645199507298,13.1108078,39891.0,39890.0,74.75982802]
[1645199507499,13.1108078,39891.0,39890.0,73.25408182]
[1645199507500,15.32077966,39891.0,39890.0,73.25408182]
[1645199507702,15.10015979,39891.0,39890.0,73.04180926]
[1645199507955,11.35549118,39891.0,39890.0,71.63816472]
[1645199508147,11.93398668,39891.0,39890.0,71.63816472]
[1645199508346,11.79147768,39891.0,39890.0,71.51276472]
[1645199508548,11.63397568,39891.0,39890.0,70.31628091]
[1645199508747,11.73850068,39891.0,39890.0,70.23981175]
[1645199508946,11.73850068,39891.0,39890.0,69.86307675]
[1645199508947,14.11174468,39891.0,39890.0,69.86307675]
[1645199509147,14.11174468,39891.0,39890.0,68.92124075]
[1645199509347,14.12174468,39891.0,39890.0,68.92124075]
[1645199509549,14.07365568,39891.0,39890.0,68.13069045]
[1645199509749,13.35067618,39891.0,39890.0,68.13069045]
[1645199509947,15.99023018,39891.0,39890.0,67.97480755]
[1645199510147,16.05501334,39891.0,39890.0,67.55987769]
[1645199510452,15.54611334,39891.0,39890.0,67.37152369]
[1645199510750,15.54611334,39891.0,39890.0,66.88934404]
[1645199510751,11.35067455,39891.0,39890.0,66.88934404]
[1645199510948,11.35067455,39891.0,39890.0,66.83178463]
[1645199510949,9.54180227,39891.0,39890.0,66.83178463]
[1645199511150,9.42990028,39891.0,39890.0,66.45515663]
[1645199511349,15.51121628,39891.0,39890.0,64.41193627]
[1645199511550,15.85654928,39891.0,39890.0,64.41193627]
[1645199511792,15.85654928,39891.0,39890.0,63.65847727]
[1645199511793,16.23201728,39891.0,39890.0,63.65847727]
[1645199511992,16.27415455,39891.0,39890.0,63.65847727]
[1645199512192,16.27415455,39891.0,39890.0,63.27576968]
[1645199512193,15.98294555,39891.0,39890.0,63.27576968]
[1645199512393,15.98294555,39891.0,39890.0,62.63641588]
[1645199512693,16.08574055,39891.0,39890.0,62.25974088]
[1645199512894,16.08574055,39891.0,39890.0,61.8091598]
[1645199512895,11.35839455,39891.0,39890.0,61.8091598]
[1645199513096,5.81601435,39891.0,39890.0,61.81257244]
[1645199513295,7.37720335,39891.0,39890.0,60.90081553]
[1645199513494,3.19941615,39891.0,39890.0,61.19878838]
[1645199513696,5.61031515,39891.0,39890.0,60.52419553]
[1645199513894,3.52479315,39891.0,39890.0,60.52419553]
[1645199514094,3.14561315,39891.0,39890.0,60.52419553]
[1645199514394,3.14561315,39891.0,39890.0,60.14752153]
[1645199514395,3.22838715,39891.0,39890.0,60.14752153]
[1645199514695,3.14369346,39891.0,39890.0,59.35711212]
[1645199514893,3.03133146,39891.0,39890.0,59.35711212]
[1645199515093,3.08958046,39891.0,39890.0,58.35045412]
[1645199515294,3.20547246,39891.0,39890.0,57.97378812]
[1645199515543,3.25871546,39891.0,39890.0,57.92212833]
[1645199515747,3.25871546,39891.0,39890.0,57.53260433]
[1645199515748,3.89269346,39891.0,39890.0,57.53260433]
[1645199515945,3.90725946,39891.0,39890.0,56.52592033]
[1645199516144,3.97004046,39891.0,39890.0,56.46313933]
[1645199516343,3.36984246,39891.0,39890.0,55.93195578]
[1645199516543,3.78223746,39891.0,39890.0,55.51691178]
[1645199516744,4.28343746,39891.0,39890.0,55.50992072]
[1645199517045,4.91904866,39891.0,39890.0,53.09232163]
[1645199517244,11.86205666,39891.0,39890.0,41.29267421]
[1645199517443,11.86205666,39891.0,39890.0,38.08866635]
[1645199517444,11.3321321,39891.0,39890.0,38.08866635]
[1645199517645,9.2144421,39891.0,39890.0,38.05367894]
[1645199517843,8.83362496,39891.0,39890.0,36.61223038]
[1645199518045,10.70855866,39891.0,39890.0,36.17267938]
[1645199518248,8.30484751,39891.0,39890.0,35.98431338]
[1645199518444,8.30484751,39891.0,39890.0,35.23092338]
[1645199518445,5.17947143,39891.0,39890.0,35.23092338]
[1645199518646,7.10526723,39891.0,39890.0,35.19398089]
[1645199518843,6.96267207,39891.0,39890.0,35.19398089]
[1645199519043,7.39073607,39891.0,39890.0,34.420704]
[1645199519302,8.84105027,39891.0,39890.0,34.0128417]
[1645199519502,8.86215607,39891.0,39890.0,33.2594007]
[1645199519701,8.50182407,39891.0,39890.0,33.2594007]
[1645199519900,8.50182407,39891.0,39890.0,33.24311076]
[1645199519901,8.41330807,39891.0,39890.0,33.24311076]
[1645199520103,8.76291407,39891.0,39890.0,32.48974476]
[1645199520301,8.14120207,39891.0,39890.0,32.42696376]
[1645199520500,8.31319986,39891.0,39890.0,31.67355376]
[1645199520701,8.30320207,39891.0,39890.0,31.65420224]
[1645199520905,8.22941227,39891.0,39890.0,31.58034224]
[1645199521103,8.41811527,39891.0,39890.0,30.78649977]
[1645199521302,8.91684727,39891.0,39890.0,30.78649977]
[1645199521502,8.85090507,39891.0,39890.0,30.21820117]
[1645199521704,11.43928607,39891.0,39890.0,29.76654769]
[1645199521903,11.28828607,39891.0,39890.0,29.69106108]
[1645199522103,11.28828607,39891.0,39890.0,28.91050001]
[1645199522303,6.24029607,39891.0,39890.0,28.8915393]
[1645199522503,6.24029607,39891.0,39890.0,28.41479494]
[1645199522504,7.23362627,39891.0,39890.0,28.41479494]
[1645199522703,7.86399127,39891.0,39890.0,28.03805894]
[1645199522948,7.72354927,39891.0,39890.0,27.91247894]
[1645199523143,8.21938303,39891.0,39890.0,27.15903094]
[1645199523449,5.58847649,39891.0,39890.0,27.15872151]
[1645199523642,5.64176349,39891.0,39890.0,27.15872151]
[1645199523842,5.64176349,39891.0,39890.0,26.78205451]
[1645199523843,5.73232249,39891.0,39890.0,26.78205451]
[1645199524042,5.73232249,39891.0,39890.0,26.35544032]
[1645199524043,6.78029449,39891.0,39890.0,26.35544032]
[1645199524244,6.78584049,39891.0,39890.0,26.32599808]
[1645199524444,6.78557149,39891.0,39890.0,25.87790802]
[1645199524746,8.72621337,39891.0,39890.0,25.50119402]
[1645199524949,10.49187657,39891.0,39890.0,15.38990055]
[1645199525145,10.49187657,39891.0,39890.0,11.44635834]
[1645199525146,9.01641057,39891.0,39890.0,11.44635834]
[1645199525346,8.86371657,39891.0,39890.0,11.40509632]
[1645199525545,7.93516857,39891.0,39890.0,10.4261337]
[1645199525744,7.15319257,39891.0,39890.0,9.3148187]
[1645199525948,7.35890792,39891.0,39890.0,9.25667192]
[1645199526145,9.86539692,39891.0,39890.0,8.3743517]
[1645199526345,10.14252992,39891.0,39890.0,8.22561361]
[1645199526544,10.04240892,39891.0,39890.0,7.84886161]
[1645199526794,10.54373072,39891.0,39890.0,7.27388672]
[1645199526994,9.99537472,39891.0,39890.0,7.27388672]
[1645199527296,10.55268492,39891.0,39890.0,6.83170798]
[1645199527495,9.95174372,39891.0,39890.0,6.38691779]
[1645199527696,9.95747472,39891.0,39890.0,5.82198579]
[1645199527897,9.99823472,39891.0,39890.0,5.82198579]
[1645199528096,9.40095972,39891.0,39890.0,5.44277779]
[1645199528297,6.54181872,39891.0,39890.0,5.04290387]
[1645199528501,6.39307022,39891.0,39890.0,4.61628224]
[1645199528697,7.20029022,39891.0,39890.0,4.12714023]
[1645199528897,7.16339428,39891.0,39890.0,3.95044171]
[1645199529098,6.62023405,39891.0,39890.0,3.47596125]
[1645199529301,4.93108405,39891.0,39890.0,3.01544643]
[1645199529499,4.93108405,39891.0,39890.0,2.63879443]
[1645199529500,5.12127505,39891.0,39890.0,2.63879443]
[1645199529699,5.26988405,39891.0,39890.0,2.24405978]
[1645199529900,5.26888405,39891.0,39890.0,2.20539966]
[1645199530101,5.55534969,39891.0,39890.0,1.78627708]
[1645199530451,5.55534969,39891.0,39890.0,1.40961008]
[1645199530452,5.55561869,39891.0,39890.0,1.40961008]
[1645199530644,5.59792469,39891.0,39890.0,0.99484379]
[1645199530843,5.20878905,39891.0,39890.0,0.61816179]
[1645199531047,5.22605105,39891.0,39890.0,0.61816179]
[1645199531244,2.09,39890.0,39876.0,0.35478722]
[1645199531445,2.09,39890.0,39861.0,0.9544]
[1645199531446,0.1,39878.0,39872.0,0.09993391]
[1645199531646,0.1,39878.0,39869.0,0.35684584]
[1645199531647,0.07,39874.0,39869.0,0.35684584]
[1645199531846,0.1,39878.0,39875.0,0.32876699]
[1645199531847,0.275565,39878.0,39875.0,0.32876699]
[1645199532046,0.07,39876.0,39868.0,0.35684584]
[1645199532245,0.07,39876.0,39874.0,0.09993391]
[1645199532246,0.062784,39876.0,39874.0,0.09993391]
[1645199532445,0.07,39875.0,39874.0,0.09993391]
[1645199532646,0.12,39875.0,39874.0,0.09993391]
[1645199533249,0.245569,39875.0,39874.0,0.09993391]
[1645199534697,0.246569,39875.0,39874.0,0.09993391]
[1645199535498,0.326569,39875.0,39874.0,0.09993391]
[1645199536598,0.326569,39875.0,39874.0,0.06178081]
[1645199538243,0.326569,39875.0,39874.0,0.06478187]
[1645199538642,0.327569,39875.0,39874.0,0.06478187]
[1645199539842,0.325569,39875.0,39874.0,0.06478187]
[1645199540044,1.5,39874.0,39868.0,0.35684584]
[1645199540244,0.062792,39869.0,39867.0,0.7201]
[1645199540445,0.142792,39869.0,39864.0,0.35684584]
[1645199540645,0.08,39868.0,39864.0,0.35083822]
[1645199540844,0.08,39868.0,39863.0,0.11832786]
[1645199541044,0.08,39868.0,39864.0,0.69597794]
[1645199541244,0.08,39868.0,39866.0,0.1]
[1645199541445,0.08,39868.0,39867.0,0.35182842]
[1645199541712,0.08,39868.0,39866.0,0.48110186]
[1645199541713,0.15,39868.0,39866.0,0.48110186]
[1645199542009,0.05,39869.0,39866.0,0.31832786]
[1645199542010,0.15,39867.0,39866.0,0.31832786]
[1645199542609,0.151,39867.0,39866.0,0.31832786]
[1645199542808,0.151,39867.0,39864.0,0.34414952]
[1645199543010,0.081,39867.0,39865.0,0.31832786]
[1645199543208,0.081,39867.0,39865.0,0.2]
[1645199543610,0.08,39866.0,39865.0,0.2]
[1645199543812,0.12331511,39866.0,39863.0,0.11832786]
[1645199544011,0.062795,39865.0,39863.0,0.11832786]
[1645199544315,0.062795,39865.0,39863.0,0.10593915]
[1645199544316,0.07331511,39864.0,39863.0,0.10593915]
[1645199544811,0.07331511,39864.0,39863.0,0.40132218]
[1645199545211,0.07331511,39864.0,39863.0,0.10593915]
[1645199546447,0.07331511,39864.0,39863.0,0.27956813]
[1645199547248,0.12331511,39864.0,39863.0,0.02956813]
[1645199547847,0.12331511,39864.0,39862.0,0.60355178]
[1645199548349,0.12449077,39864.0,39862.0,0.60355178]
[1645199548653,0.12794569,39865.0,39862.0,0.60355178]
[1645199548654,0.06515069,39865.0,39864.0,1.6]
[1645199549292,0.06515069,39865.0,39863.0,0.1]
[1645199549692,0.06515069,39865.0,39862.0,0.35253538]
[1645199550290,0.06515069,39865.0,39862.0,0.2]
[1645199550291,0.12793969,39865.0,39862.0,0.2]
[1645199550693,0.12793969,39865.0,39862.0,0.49674438]
[1645199551092,0.12793969,39865.0,39862.0,0.45674438]
[1645199551293,0.06514469,39865.0,39861.0,0.9144]
[1645199551496,0.062799,39862.0,39861.0,0.7174]
[1645199552391,0.063799,39862.0,39861.0,0.7174]
[1645199553444,0.063799,39862.0,39861.0,1.01190675]
[1645199553844,0.062799,39862.0,39861.0,1.01190675]
[1645199554145,0.062799,39862.0,39861.0,0.7174]
[1645199555446,0.132799,39862.0,39861.0,0.7174]
[1645199556045,0.13244095,39862.0,39861.0,0.7174]
[1645199556444,0.17964095,39862.0,39861.0,0.7174]
[1645199557694,0.17864095,39862.0,39861.0,0.7174]
[1645199558496,0.17964095,39862.0,39861.0,0.71850378]
[1645199559695,0.17864095,39862.0,39861.0,0.71850378]
[1645199560296,0.17964095,39862.0,39861.0,0.71850378]
[1645199561544,0.17864095,39862.0,39861.0,0.71850378]
[1645199562344,0.17964095,39862.0,39861.0,0.71850378]
[1645199562748,0.17964095,39862.0,39861.0,0.50341429]
[1645199562948,0.17964095,39862.0,39861.0,0.01550465]
[1645199562949,2.34211525,39862.0,39861.0,0.01550465]
[1645199563146,2.34211525,39862.0,39856.0,0.7822]
[1645199563147,0.062812,39858.0,39856.0,0.51770465]
[1645199563348,0.062808,39855.0,39846.0,0.16]
[1645199563547,0.0462,39854.0,39850.0,0.16]
[1645199563749,0.0462,39854.0,39853.0,0.16]
[1645199564597,0.0462,39854.0,39844.0,0.2387]
[1645199564796,0.0962,39854.0,39850.0,0.16]
[1645199564996,0.062807,39850.0,39849.0,0.48539736]
[1645199565397,0.188413,39850.0,39849.0,0.48539736]
[1645199565596,0.238413,39850.0,39849.0,0.48539736]
[1645199566398,0.188413,39850.0,39849.0,0.48539736]
[1645199566601,0.0959673,39862.0,39852.0,1.6]
[1645199566602,0.03690766,39858.0,39852.0,1.6]
[1645199566799,0.03690766,39858.0,39857.0,0.16]
[1645199566998,0.089817,39862.0,39857.0,1.76]
[1645199567198,0.089817,39862.0,39861.0,0.16]
[1645199567399,0.06278,39863.0,39861.0,0.40698343]
[1645199567600,0.0462,39873.0,39863.0,1.6]
[1645199567804,0.0462,39873.0,39864.0,1.6]
[1645199568050,0.08421872,39873.0,39865.0,0.0096]
[1645199568249,0.08421872,39873.0,39868.0,0.26926822]
[1645199568451,0.132785,39869.0,39865.0,0.0096]
[1645199568648,0.062785,39869.0,39865.0,0.0096]
[1645199568848,0.062785,39869.0,39865.0,0.1696]
[1645199569049,0.062785,39869.0,39865.0,0.0096]
[1645199569050,0.251138,39869.0,39865.0,0.0096]
[1645199569250,0.125583,39868.0,39865.0,0.0096]
[1645199569449,0.125583,39868.0,39865.0,0.1696]
[1645199569650,0.05,39867.0,39865.0,0.1696]
[1645199570354,0.42775,39867.0,39865.0,0.16]
[1645199571351,0.42775,39867.0,39862.0,0.15332072]
[1645199571352,0.52775,39867.0,39862.0,0.15332072]
[1645199571553,0.062793,39862.0,39861.0,0.16]
[1645199573000,0.062793,39862.0,39861.0,0.35475295]
[1645199573897,0.10105171,39862.0,39861.0,0.35475295]
[1645199574498,0.10205171,39862.0,39861.0,0.35475295]
[1645199575549,0.10105171,39862.0,39861.0,0.35475295]
[1645199576346,0.10205171,39862.0,39861.0,0.35475295]
[1645199577348,0.10205171,39862.0,39861.0,0.64917591]
[1645199577747,0.10105171,39862.0,39861.0,0.64917591]
[1645199577948,0.10105171,39862.0,39861.0,0.64648701]
[1645199578348,0.10105171,39862.0,39861.0,0.35206405]
[1645199578349,0.1032537,39862.0,39861.0,0.35206405]
[1645199579500,0.1032537,39862.0,39861.0,0.67717266]
[1645199579699,0.1022537,39862.0,39861.0,0.35206405]
[1645199580101,0.251153,39866.0,39862.0,1.6]
[1645199580301,0.251153,39866.0,39865.0,0.1573111]
[1645199580302,0.188374,39866.0,39865.0,0.1573111]
[1645199580501,0.188374,39866.0,39862.0,1.6]
[1645199580706,0.188374,39866.0,39864.0,0.1573111]
[1645199581101,0.188374,39866.0,39865.0,0.32725217]
[1645199581302,0.238374,39866.0,39865.0,0.32725217]
[1645199582503,0.239374,39866.0,39865.0,0.32725217]
[1645199583552,0.05,39866.0,39865.0,0.32725217]
[1645199583754,0.03801872,39873.0,39865.0,0.32725217]
[1645199583755,0.0086,39876.0,39868.0,1.6]
[1645199583951,0.0086,39876.0,39873.0,0.1573111]
[1645199584151,0.125532,39875.0,39869.0,0.0096]
[1645199584351,0.125532,39875.0,39873.0,0.1573111]
[1645199584552,0.125532,39875.0,39873.0,0.42964627]
[1645199584750,0.125532,39875.0,39874.0,0.13193221]
[1645199585350,0.255532,39875.0,39874.0,0.13193221]
[1645199585550,0.318298,39875.0,39874.0,0.13193221]
[1645199585751,0.318298,39875.0,39874.0,0.32776084]
[1645199585956,0.08,39875.0,39874.0,0.65659096]
[1645199586151,0.08,39875.0,39874.0,0.32776084]
[1645199586351,0.10061625,39876.0,39875.0,1.6]
[1645199586552,0.07000625,39876.0,39875.0,1.6]
[1645199586813,0.07000625,39876.0,39874.0,0.13193221]
[1645199586814,0.001,39880.0,39877.0,1.6]
[1645199587014,0.001,39880.0,39879.0,0.1573111]
[1645199587212,0.001,39880.0,39879.0,0.50711946]
[1645199587413,0.0389255,39880.0,39879.0,0.50711946]
[1645199587813,0.05,39883.0,39881.0,0.1573111]
[1645199588015,0.0201,39883.0,39881.0,2.08614122]
[1645199588314,0.02568965,39886.0,39884.0,0.1573111]
[1645199588524,0.00024256,39891.0,39884.0,0.35133491]
[1645199588714,0.00024256,39891.0,39889.0,0.1573111]
[1645199588715,0.50024256,39891.0,39889.0,0.1573111]
[1645199588915,0.00050685,39891.0,39890.0,0.3073996]
[1645199589122,0.143158,39902.0,39894.0,1.6]
[1645199589323,0.00024488,39903.0,39896.0,1.6]
[1645199589324,0.0061503,39899.0,39896.0,1.6]
[1645199589517,0.00048976,39904.0,39898.0,1.7573111]
[1645199589718,0.52031457,39921.0,39907.0,0.1573111]
[1645199589719,0.05,39911.0,39907.0,0.1573111]
[1645199589917,0.54210872,39916.0,39908.0,0.30656468]
[1645199590121,0.03190872,39916.0,39915.0,0.29283128]
[1645199590322,0.09464004,39916.0,39915.0,0.29283128]
[1645199590561,0.06472817,39916.0,39915.0,0.29283128]
[1645199590761,0.05,39922.0,39919.0,0.24082059]
[1645199590962,0.03849149,39922.0,39921.0,0.1573111]
[1645199591164,0.04087492,39922.0,39920.0,0.30656468]
[1645199591361,0.125385,39922.0,39921.0,0.20433206]
[1645199591561,0.125385,39922.0,39917.0,0.0096]
[1645199591562,0.132665,39922.0,39917.0,0.0096]
[1645199591762,0.132665,39922.0,39907.0,0.30656468]
[1645199591763,0.125385,39922.0,39907.0,0.30656468]
[1645199591961,0.1,39923.0,39907.0,0.30656468]
[1645199592158,0.1,39923.0,39908.0,0.0095]
[1645199592159,0.0061503,39922.0,39908.0,0.0095]
[1645199592359,0.062708,39912.0,39908.0,0.0095]
[1645199592562,0.188151,39912.0,39908.0,0.0095]
[1645199592759,0.00728,39909.0,39908.0,0.09975338]
[1645199592959,0.00728,39909.0,39908.0,0.0095]
[1645199593763,0.00728,39909.0,39903.0,0.30656468]
[1645199593960,0.00728,39909.0,39902.0,0.31576468]
[1645199593961,0.062722,39907.0,39902.0,0.31576468]
[1645199594208,0.062722,39907.0,39901.0,0.7555]
[1645199594604,0.062722,39907.0,39889.0,0.39115601]
[1645199594605,0.29530267,39899.0,39889.0,0.39115601]
[1645199594805,0.12513823,39891.0,39890.0,0.0093]
[1645199595003,0.13241823,39891.0,39889.0,0.39115601]
[1645199595304,0.00728,39890.0,39889.0,0.09025338]
[1645199596202,0.00728,39890.0,39889.0,0.39305099]
[1645199596603,0.11274,39891.0,39889.0,0.39305099]
[1645199596802,0.06274,39891.0,39889.0,0.39305099]
[1645199597002,0.09949732,39891.0,39889.0,0.39305099]
[1645199597202,0.06274,39891.0,39889.0,0.39305099]
[1645199597404,7.556e-05,39893.0,39890.0,0.24952762]
[1645199597603,7.556e-05,39893.0,39892.0,0.09025338]
[1645199598061,0.125453,39897.0,39892.0,0.09025338]
[1645199598255,0.0006044,39901.0,39893.0,0.3]
[1645199598457,0.1,39914.0,39893.0,0.3]
[1645199598458,0.13649,39922.0,39920.0,46.19553753]
[1645199598653,1.424944,39921.0,39920.0,44.77248579]
[1645199598854,1.921724,39921.0,39920.0,44.68147941]
[1645199599057,2.229826,39921.0,39920.0,44.30517941]
[1645199599255,1.156551,39921.0,39920.0,44.30517941]
[1645199599454,0.906048,39921.0,39920.0,43.92891641]
[1645199599653,0.80497,39921.0,39920.0,43.92891641]
[1645199599852,0.80497,39921.0,39920.0,0.27275059]
[1645199599853,1.113052,39921.0,39920.0,0.27275059]
[1645199600054,1.113052,39921.0,39915.0,0.10485316]
[1645199600055,1.047052,39921.0,39915.0,0.10485316]
[1645199600254,0.06999,39917.0,39915.0,0.10485316]
[1645199600455,0.00728,39916.0,39915.0,0.10485316]
[1645199601359,0.00728,39916.0,39915.0,0.59510654]
[1645199601360,0.06271,39916.0,39915.0,0.59510654]
[1645199601559,0.75356177,39921.0,39915.0,0.29510654]
[1645199601813,0.00207177,39921.0,39920.0,0.1]
[1645199602015,7.177e-05,39921.0,39920.0,0.1]
[1645199602212,7.177e-05,39921.0,39920.0,0.30622771]
[1645199602611,0.06276277,39921.0,39920.0,0.1]
[1645199602812,0.06276277,39921.0,39919.0,0.09025338]
[1645199603311,0.06276277,39921.0,39920.0,0.33604645]
[1645199603511,0.03843378,39926.0,39921.0,1.4]
[1645199603713,0.03843378,39926.0,39922.0,0.09025338]
[1645199603911,0.00728,39923.0,39921.0,1.4]
[1645199604115,0.03843378,39926.0,39922.0,0.09025338]
[1645199604313,0.00728,39923.0,39922.0,0.3974366]
[1645199604511,0.00728,39923.0,39922.0,0.21530239]
[1645199604712,0.00728,39923.0,39920.0,0.002821]
[1645199604912,0.062682,39924.0,39920.0,0.002821]
[1645199605112,0.062682,39924.0,39917.0,0.0099]
[1645199605550,6.773e-05,39922.0,39917.0,0.0099]
[1645199605749,0.175417,39921.0,39918.0,0.11520871]
[1645199606150,0.125417,39921.0,39918.0,0.51264531]
[1645199606349,0.125417,39921.0,39918.0,0.20546209]
[1645199606550,0.125417,39921.0,39917.0,0.0099]
[1645199606952,0.125417,39921.0,39910.0,0.30718322]
[1645199607153,0.12555646,39922.0,39911.0,0.0096]
[1645199607154,0.062716,39915.0,39911.0,0.0096]
[1645199607355,0.062708,39913.0,39906.0,0.30718322]
[1645199607556,0.313556,39914.0,39905.0,0.2783459]
[1645199607557,0.26642373,39908.0,39905.0,0.2783459]
[1645199607753,0.0462,39907.0,39905.0,0.0099]
[1645199608354,0.0462,39907.0,39904.0,0.7296]
[1645199608555,0.108925,39907.0,39904.0,0.7296]
[1645199608755,0.108925,39907.0,39905.0,0.2895721]
[1645199609214,0.108925,39907.0,39904.0,0.7296]
[1645199609819,0.13268829,39905.0,39891.0,0.09025338]
[1645199610016,0.13268829,39905.0,39894.0,0.01]
[1645199610017,0.3127774,39900.0,39894.0,0.01]
[1645199610218,0.0462,39899.0,39894.0,0.01]
[1645199610415,0.188205,39903.0,39894.0,0.01]
[1645199610416,0.0462,39898.0,39894.0,0.01]
[1645199610615,0.00728,39895.0,39894.0,0.01]
[1645199610816,0.05348,39895.0,39894.0,0.01]
[1645199611018,0.05348,39895.0,39893.0,0.68515574]
[1645199611217,0.0462,39895.0,39893.0,1.03603163]
[1645199611421,0.108945,39895.0,39893.0,1.03603163]
[1645199611621,0.14740566,39895.0,39893.0,1.03603163]
[1645199611820,0.158945,39895.0,39894.0,0.09025338]
[1645199612023,0.158945,39895.0,39893.0,1.13603163]
[1645199612024,0.166225,39895.0,39893.0,1.03603163]
[1645199612218,0.0962,39895.0,39893.0,1.03603163]
[1645199612620,0.125469,39894.0,39893.0,1.03603163]
[1645199615557,0.175469,39894.0,39893.0,1.03603163]
[1645199616257,0.175469,39894.0,39893.0,1.13603163]
[1645199617108,0.175469,39894.0,39893.0,1.03603163]
[1645199617306,0.175469,39894.0,39893.0,0.68515574]
[1645199617707,0.176469,39894.0,39893.0,0.68515574]
[1645199618105,0.224669,39894.0,39893.0,0.68515574]
[1645199618806,0.224669,39894.0,39883.0,0.0091]
[1645199618807,0.2308193,39894.0,39883.0,0.0091]
[1645199619008,0.2308193,39894.0,39883.0,0.31512664]
[1645199619009,1.495532,39893.0,39883.0,0.31512664]
[1645199619207,0.062762,39886.0,39883.0,0.0091]
[1645199619407,0.062762,39886.0,39877.0,1.08862664]
[1645199619408,0.00728,39884.0,39877.0,1.08862664]
[1645199619611,0.062762,39886.0,39877.0,1.08862664]
[1645199619612,0.062762,39886.0,39883.0,0.25139849]
[1645199619806,0.00728,39884.0,39883.0,0.25139849]
[1645199620108,0.05348,39884.0,39883.0,0.25139849]
[1645199620307,0.05348,39884.0,39879.0,0.103]
[1645199620308,0.10348,39884.0,39879.0,0.103]
[1645199620552,0.00728,39881.0,39879.0,0.003]
[1645199620752,0.05348,39881.0,39879.0,0.003]
[1645199621353,0.05348,39881.0,39880.0,0.48742968]
[1645199621553,0.05348,39881.0,39880.0,0.67768306]
[1645199621753,0.05348,39881.0,39880.0,0.58742968]
[1645199622157,0.06374,39886.0,39881.0,1.6]
[1645199622353,0.07,39882.0,39881.0,1.6]
[1645199622554,0.07,39882.0,39881.0,1.69025338]
[1645199622755,0.132745,39882.0,39881.0,1.69025338]
[1645199622955,0.07,39882.0,39881.0,1.69025338]
[1645199623355,0.07,39882.0,39881.0,1.6]
[1645199624902,0.07,39882.0,39881.0,1.69025338]
[1645199625098,0.07,39882.0,39881.0,0.09025338]
[1645199625099,0.132749,39882.0,39881.0,0.09025338]
[1645199625298,0.132749,39882.0,39880.0,0.62952524]
[1645199625299,0.212749,39882.0,39880.0,0.62952524]
[1645199625499,0.08,39881.0,39880.0,0.62952524]
[1645199625699,0.08,39881.0,39880.0,0.47767765]
[1645199625899,0.13,39881.0,39880.0,0.47767765]
[1645199626102,0.13,39881.0,39880.0,0.101]
[1645199626301,0.13,39881.0,39880.0,0.001]
[1645199627508,0.1823503,39881.0,39877.0,0.002]
[1645199627702,0.205554,39879.0,39876.0,0.1]
[1645199627962,0.268323,39877.0,39876.0,0.1]
[1645199628252,0.364523,39877.0,39876.0,0.09923182]
[1645199628749,0.364523,39877.0,39876.0,0.07423182]
[1645199629250,0.364523,39877.0,39876.0,0.39001421]
[1645199630353,0.364523,39877.0,39876.0,0.07423182]
[1645199631906,0.1762,39877.0,39876.0,0.07423182]
[1645199632507,0.13,39877.0,39876.0,0.07423182]
[1645199633307,0.125,39877.0,39876.0,0.07423182]
[1645199633907,0.127,39877.0,39876.0,0.07423182]
[1645199635007,0.125,39877.0,39876.0,0.07423182]
[1645199635951,0.127,39877.0,39876.0,0.07423182]
[1645199636750,0.315314,39877.0,39876.0,0.07423182]
[1645199637151,0.313314,39877.0,39876.0,0.07423182]
[1645199637854,0.314314,39877.0,39876.0,0.07423182]
[1645199638454,0.31903074,39877.0,39876.0,0.07423182]
[1645199639299,0.31803074,39877.0,39876.0,0.07423182]
[1645199639902,0.38803074,39877.0,39876.0,0.07423182]
[1645199640104,0.9567397,39876.0,39875.0,0.001]
[1645199640302,0.39036137,39876.0,39875.0,0.001]
[1645199640506,0.26362167,39876.0,39875.0,0.001]
[1645199641105,0.125559,39872.0,39867.0,0.0095]
[1645199641304,0.1262,39871.0,39867.0,0.0095]
[1645199641506,0.1262,39871.0,39865.0,0.1]
[1645199641507,0.08,39869.0,39866.0,0.6985]
[1645199641702,0.175565,39871.0,39866.0,0.6985]
[1645199641703,0.08,39867.0,39866.0,0.6985]
[1645199641904,0.1262,39867.0,39866.0,0.6985]
[1645199642304,0.2853482,39867.0,39866.0,0.6985]